Cogmind - Beta 11.1 @@@ ROGUE MODE // 2022.04.29 @ 13:54:01 Player: Olga Result: Destroyed by Y-45 Defender with Beam Rifle Performance ------------- Evolutions (1) 500 Regions Visited (3) 600 Robots Destroyed (3) 15 Value Destroyed (90) 90 Prototype IDs (0) 0 Alien Tech Used (0) 0 Bonus (0) 0 TOTAL SCORE: 1205 Bonus ------- None Cogmind --------- Core Integrity 0/400 Matter 236/300 Energy 63/100 System Corruption 2% Temperature Cool (15) Movement Walking (120) Location -9/Materials Parts ------- > --- POWER (1) -------- (None) > --- PROPULSION (3) --- Improved Aluminum Leg Improved Aluminum Leg > --- UTILITY (3) ------ (None) > --- WEAPON (2) ------- Mining Claw Mining Claw > --- INVENTORY (5) ---- (None) Peak State ------------ > --- POWER ------------ Light Ion Engine > --- PROPULSION ------- Wheel Flight Unit > --- UTILITY ---------- Sensor Array Seismic Detector > --- WEAPON ----------- Particle Gun Assault Rifle > --- INVENTORY -------- Light Ion Engine Compact Wheel [Rating: 8] Favorites ----------- Power Light Ion Engine Engine Light Ion Engine Propulsion Aluminum Leg Leg Aluminum Leg Wheel Wheel Flight Unit Flight Unit Utility Seismic Detector Device Seismic Detector Storage Small Storage Unit Weapon Medium Laser Energy Gun Medium Laser Ballistic Gun Assault Rifle Slashing Weapon Mining Claw Build | -11 -10 -10 -9 ------- Run | Scr Mat Min Mat Slots Evolved 2 | . . . 2 Power . | . . . . Propulsion 1 | . . . 1 Utility 1 | . . . 1 Weapon . | . . . . Parts Attached 16 | . 1 2 13 Power 2 | . . 1 1 Engine 2 | . . 1 1 Core . | . . . . Reactor . | . . . . Propulsion 7 | . . 1 6 Treads . | . . . . Leg 3 | . . . 3 Wheel 3 | . . . 3 Hover . | . . . . Flight 1 | . . 1 . Utility 3 | . 1 . 2 Device 3 | . 1 . 2 Storage . | . . . . Processor . | . . . . Hackware . | . . . . Protection . | . . . . Artifact . | . . . . Weapon 4 | . . . 4 Energy Gun 1 | . . . 1 Energy Cannon . | . . . . Ballistic Gun 1 | . . . 1 Ballistic Cannon . | . . . . Launcher . | . . . . Special Weapon . | . . . . Impact Weapon . | . . . . Slashing Weapon 2 | . . . 2 Piercing Weapon . | . . . . Special Melee Weapon . | . . . . Unidentified Prototypes . | . . . . Parts Lost 10 | . . . 10 Power 2 | . . . 2 Propulsion 4 | . . . 4 Utility 2 | . . . 2 Weapon 2 | . . . 2 Highest Loss Streak 10 | . . . 10 To Critical Strikes . | . . . . Average Slot Usage (%) 68 | . 96 65 44 Engine 10 | . 14 14 7 Leg 14 | . 28 11 3 Wheel 2 | . . . 6 Flight 4 | . . 8 6 Device 14 | . 10 14 18 Storage 6 | . 14 5 . Energy Gun 13 | . 28 11 . Naked Turns 4 | . . . 4 Heaviest Build 13 | 12 13 13 6 Greatest Support 39 | 20 20 20 39 Greatest Overweight (x) 1 | . . . 1 Average Overweight (x) . | . . . . Largest Inventory Capacity 8 | . 8 8 5 Average Capacity 6 | . 8 6 5 Most Carried 8 | . 8 8 4 Average Carried 4 | . 6 6 2 Final Capacity 8 | 8 8 5 5 Final Carried 8 | 6 8 4 . Class Distribution -------------------- 100% | Mutant Dominant Class ---------------- Mutant | -10/Materials Mutant | -10/Mines Mutant | -9/Materials Resources | -11 -10 -10 -9 ----------- Run | Scr Mat Min Mat Matter Collected 229 | 200 . 29 . Remotely . | . . . . Salvage Created 44 | . . 44 . Parts 5 | . . 5 . Haulers Intercepted . | . . . . Recyclers Shooed . | . . . . Parts Field Recycled . | . . . . Retrieved Matter . | . . . . Parts Self-Destructed . | . . . . Prevented . | . . . . Kills | -11 -10 -10 -9 ------- Run | Scr Mat Min Mat Combat Hostiles Destroyed 3 | . . 3 . Guns 3 | . . 3 . Classes Destroyed 1 | . . 1 . Swarmer 3 | . . 3 . Best Kill Streak 3 | . . 3 . Combat Bots Only 3 | . . 3 . Max Kills in Single Turn 1 | . . 1 . Gunslinging . | . . . . Exploded . | . . . . Melee . | . . . . Uniques/NPCs Destroyed . | . . . . Combat | -11 -10 -10 -9 -------- Run | Scr Mat Min Mat Damage Taken 1191 | . . 93 1098 Core 411 | . . . 411 Absorbed by Shields . | . . . . Core Remaining (%) 100 | 100 . 100 . Volleys Fired 13 | . . 7 6 Largest 2 | . . 2 2 Hottest 100 | . . 100 85 Shots Fired 25 | . . 14 11 Gun 25 | . . 14 11 Cannon . | . . . . Launcher . | . . . . Special . | . . . . Kinetic 5 | . . . 5 Thermal 20 | . . 14 6 Explosive . | . . . . Electromagnetic . | . . . . Robot Hit Streak 5 | . . 5 4 Robot Miss Streak 2 | . . 2 1 Penetration Max . | . . . . Secondary Targets 2 | . . 2 . Max Gunslinging Chain 1 | . . 1 . Shots Hit Robots 18 | . . 9 9 Core Hits 6 | . . 3 3 Critical Kills . | . . . . Critical Parts Destroyed . | . . . . Critical Strikes 1 | . . 1 . Burn 1 | . . 1 . Melee Attacks 4 | . . . 4 Impact . | . . . . Slashing 4 | . . . 4 Piercing . | . . . . Sneak Attacks . | . . . . Combat Hostiles . | . . . . Follow-up Attacks 1 | . . . 1 Damage Inflicted 298 | . . 112 186 Guns 235 | . . 112 123 Cannons . | . . . . Explosions . | . . . . Melee 24 | . . . 24 Ramming 39 | . . . 39 Kinetic 40 | . . . 40 Thermal 195 | . . 112 83 Explosive . | . . . . Electromagnetic . | . . . . Impact . | . . . . Slashing 24 | . . . 24 Piercing . | . . . . Highest Corruption 2 | . . . 2 Average Corruption 2 | . . . 2 Corruption Purged . | . . . . Corruption Blocked . | . . . . Overload Shots . | . . . . Overflow Damage . | . . . . Projectiles . | . . . . Explosions . | . . . . Melee . | . . . . Knockbacks 1 | . . . 1 Impact 1 | . . . 1 Kinetic . | . . . . Secondary . | . . . . Self-Inflicted Damage 18 | . . . 18 Shots . | . . . . Rammed 8 | . . . 8 Targets Rammed 8 | . . . 8 Kicked . | . . . . Crushed . | . . . . Highest Temperature 273 | . . 273 73 Average Temperature 103 | . . 135 43 Received Heat Transfer 246 | . . . 246 Siege Activations . | . . . . Robots Corrupted . | . . . . Combat Hostiles . | . . . . Parts Fried . | . . . . Impact Corruptions . | . . . . Robots Melted . | . . . . Combat Hostiles . | . . . . Parts Melted 2 | . . 2 . Heat Transferred 592 | . . 407 185 Parts Sabotaged . | . . . . Parts Stolen . | . . . . Parts Stripped . | . . . . Power Chain Reactions . | . . . . Missiles Intercepted . | . . . . Alert | -11 -10 -10 -9 ------- Run | Scr Mat Min Mat Peak Influence 84 | . 38 84 65 Initial 32 | . . 14 32 Average 29 | . 13 71 31 Maximum Alert Level . | . . . . Low Security (%) 100 | . 100 100 100 Level 1 . | . . . . Level 2 . | . . . . Level 3 . | . . . . Level 4 . | . . . . Level 5 . | . . . . High Security . | . . . . Max Security . | . . . . Squads Dispatched 1 | . . . 1 Investigation 1 | . . . 1 Extermination . | . . . . Reinforcement . | . . . . Assault . | . . . . Garrison . | . . . . Intercept . | . . . . Searches Triggered . | . . . . Construction Impeded . | . . . . Haulers Reinforced . | . . . . Active Scanning Responses . | . . . . Cargo Convoy Interrupts . | . . . . Stealth | -11 -10 -10 -9 --------- Run | Scr Mat Min Mat Distress Signals . | . . . . Communications Jammed . | . . . . Distress Signals . | . . . . Times Spotted 17 | . 2 3 12 Peak Tracking Total 12 | . 3 3 12 Tactical Retreats 1 | . . . 1 Traps | -11 -10 -10 -9 ------- Run | Scr Mat Min Mat Traps Triggered . | . . . . Indirectly . | . . . . Trap Hack Attempts . | . . . . Triggered . | . . . . Disarmed . | . . . . Reprogrammed . | . . . . Reused . | . . . . Traps Extracted . | . . . . Installed . | . . . . Triggered . | . . . . Machines | -11 -10 -10 -9 ---------- Run | Scr Mat Min Mat Machines Disabled . | . . . . Max in Single Turn . | . . . . Machines Sabotaged 1 | . . . 1 Garrisons Compromised . | . . . . Overloaded Fab Kills . | . . . . Hacking | -11 -10 -10 -9 --------- Run | Scr Mat Min Mat Machines Accessed 5 | . 3 . 2 Terminals 5 | . 3 . 2 Fabricators . | . . . . Repair Stations . | . . . . Recycling Units . | . . . . Scanalyzers . | . . . . Garrison Access . | . . . . Total Hacks 12 | . 8 . 4 Successful 3 | . 2 . 1 Failed 9 | . 6 . 3 Catastrophic 2 | . 2 . . Database Lockouts . | . . . . Manual 11 | . 7 . 4 Terminals 12 | . 8 . 4 Fabricators . | . . . . Repair Stations . | . . . . Recycling Units . | . . . . Scanalyzers . | . . . . Garrison Access . | . . . . Terminal Hacks 1 | . 1 . . Branch Access Points 1 | . 1 . . Fabricator Hacks . | . . . . Repair Station Hacks . | . . . . Recycling Unit Hacks . | . . . . Scanalyzer . | . . . . Garrison Access Hacks . | . . . . Unauthorized Hacks 2 | . 1 . 1 Terminals 2 | . 1 . 1 Assimilate 1 | . 1 . . Sabotage 1 | . . . 1 Fabricators . | . . . . Repair Stations . | . . . . Recycling Units . | . . . . Scanalyzers . | . . . . Garrison Access . | . . . . Data Cores Recovered . | . . . . Used . | . . . . Hacking Detections 3 | . 2 . 1 Full Trace Events 1 | . 1 . . Feedback Events . | . . . . Feedback Blocked . | . . . . Robot Schematics Acquired . | . . . . Robots Built . | . . . . Authchips . | . . . . Time . | . . . . Total Robot Build Rating . | . . . . Part Schematics Acquired . | . . . . Parts Built . | . . . . Authchips . | . . . . Time . | . . . . Total Part Build Rating . | . . . . Parts Repaired . | . . . . Time . | . . . . Parts Recycled . | . . . . Recycled Matter . | . . . . Retrieved Matter . | . . . . Retrieved Components . | . . . . Parts Scanalyzed . | . . . . Part Schematics Acquired . | . . . . Parts Damaged . | . . . . Bothacking | -11 -10 -10 -9 ------------ Run | Scr Mat Min Mat Used RIF Installer . | . . . . Robots Hacked . | . . . . Non-combat . | . . . . Combat . | . . . . Robot Hacks Applied . | . . . . Relay Couplers Released . | . . . . Fabnet Peak Effective % . | . . . . Robots Rewired . | . . . . Allies Hacked . | . . . . Hacks Repelled . | . . . . Allies | -11 -10 -10 -9 -------- Run | Scr Mat Min Mat Total Allies 1 | . 1 . . Largest Group 1 | . 1 1 1 Highest-Rated Group 10 | . 10 10 10 Highest-Rated Ally 10 | . 10 10 10 Total Orders . | . . . . Ally Attacks . | . . . . Total Damage . | . . . . Kills . | . . . . Allies Corrupted . | . . . . Allies Melted . | . . . . Intel | -11 -10 -10 -9 ------- Run | Scr Mat Min Mat Robot Analysis Total . | . . . . Derelict Logs Recovered 2 | . . 2 . Drone Launches . | . . . . Drone Recoveries . | . . . . Exploration | -11 -10 -10 -9 ------------- Run | Scr Mat Min Mat Turns Passed 397 | . 159 51 187 Spaces Moved 345 | 1 129 43 172 Core 48 | . . . 48 Treads . | . . . . Legs 137 | 1 129 1 6 Wheels 90 | . . . 90 Hover . | . . . . Flight 70 | . . 42 28 Fastest Speed 40 | 120 120 40 40 Average Speed 89 | 120 120 41 78 Slowest Speed 120 | 120 120 120 120 Overloaded Moves . | . . . . Propulsion Burnouts . | . . . . Robots Hopped 1 | . . 1 . Cave-ins Triggered . | . . . . Exploration Rate (%) 19 | 2 37 20 20 Regions Visited 3 Branch Regions 1 Pre-discovered Areas 1 | . . 1 . Known Exits Taken 1 | . 1 . . Unknown Exits Taken 2 | 1 . 1 . Scrap Searched . | . . . . Spaces Dug . | . . . . Terrain Destroyed . | . . . . Melee . | . . . . Projectile . | . . . . AOE . | . . . . Terrain Rammed . | . . . . Walls Destroyed . | . . . . Machines Disabled . | . . . . Actions | -11 -10 -10 -9 --------- Run | Scr Mat Min Mat Total 400 | . 132 63 205 Wait 7 | . 1 6 . Move 340 | . 128 40 172 Hop 1 | . . 1 . Pick Up 3 | . 2 . 1 Fast Attach 10 | . 1 1 8 Attach 5 | . . . 5 Detach . | . . . . Swap 1 | . . 1 . Drop 9 | . . 7 2 Fire 13 | . . 7 6 Melee 3 | . . . 3 Ram 8 | . . . 8 Kick . | . . . . Crush . | . . . . Escape Stasis . | . . . . Rewire . | . . . . Trap . | . . . . Miscellaneous . | . . . . Route ------- -11/Scrapyard -10/Materials -10/Mines -9/Materials (discovered 1 exit: [*Min]) History --------- Turn | Location | Event 1 | -11/Scrapyard | Discovered new exit (range 0) 1 | -11/Scrapyard | Entered Materials 106 | -10/Materials | Identified exit to Mines 160 | -10/Materials | Entered Mines 160 | -10/Mines | Accompanied by 1 ally 195 | -10/Mines | Learned location of Zion (-6) 199 | -10/Mines | Learned Materials stockpile data 201 | -10/Mines | Discovered new exit (range 13) 211 | -10/Mines | Entered Materials 211 | -9/Materials | Accompanied by 1 ally 211 | -9/Materials | Evolved 2 slots: Propulsion x1, Utility x1 301 | -9/Materials | Build established: Mutant 331 | -9/Materials | Discovered new exit (range 15) 368 | -9/Materials | Core integrity fell below 50% 386 | -9/Materials | Core integrity fell below 20% 398 | -9/Materials | Destroyed by Y-45 Defender with Beam Rifle Last Messages --------------- >>Force(Sabotage) SYSTEM_VULNERABLE[Fusion Modulator] NETWORK_OVERLOAD COORDINATES_RETRIEVED 00356_ ALERT: Suspicious activity at Terminal M008. Dispatching Investigation squad. 00359_ Com. Wheel destroyed. 00360_ Slammed into Y-45 Defender. 00361_ Slammed into G-34 Mercenary. 00363_ Dropped Com. Wheel. 00365_ R-06 Scavenger collects Hover Unit. 00370_ Seismic Detector destroyed. 00372_ Lgt. Ion Engine destroyed. 00376_ Acquired Imp. Aluminum Leg. 00382_ G-34 Mercenary destroyed. 00386_ Acquired Mining Claw. 00387_ S-10 Pest destroyed. 00388_ Acquired Mining Claw. 00391_ Mining Claw follow-up attack on G-47 Trooper. 00395_ Imp. Aluminum Leg destroyed. Map ----- +----------------------------------------------------+ | ?????????????????????????????????????????????????? | | ?????????????????????????????????????????????????? | | ?????????????????????????????????????????????????? | | ?????????????????????????????????????????????????? | | ?????????????????????????????????????????????????? | | ?????????????????????????????????????????????????? | | ????? ????????????????????????????????????????? | | ????# #???????????????????????????????????????? | | ????# #???????????????????????????????????????? | | ????# #???????????????????????????????????????? | | ????# #???????????????????????????????????????? | | ????# #???????????????????????????????????????? | | ????# #???????????????????????????????????????? | | ????# #???????????????????????????????????????? | | ????# #???????????????????????????????????????? | | ????# #??????????????????????????#????????????? | | ????# #????????????????????????? #????????????? | | ????# #???????????????????????? #????????????? | | ????# #??????????????????????? #????????????? | | ????# #??#######?????????????# ##???????????? | | ????# #??# ############## #####???????? | | ????# #### ??????? | | ????# = < ??????? | | ????# ####/## ??????? | | ????# ##= # ##########g### #???????????? | | ????# ## ### ###??# @g #?????????????????? | | ????# ## #?# #????# =Yg #?????????????????? | | ????# ## "" #?# +????# !g% #?????????????????? | | ????# ## "" #?# #????# =ssl #?????????????????? | | ????# ## "T #?# #????# #?????????????????? | | ?#+## ## "" #?# #????# #?????????????????? | | ?# ## "" #?# #????# !#?????????????????? | | ?# ## #?# #????# #?????????????????? | | ?# ######### #????###########?????????????????? | | ?# #????????????????????????????????? | | ?# ############=#????????????????????????????????? | | ?# ???????????#*#????????????????????????????????? | | ?# ???????????# #????????????????????????????????? | | ?#??????#######/##???????????????????????????????? | | ????????# #???????????????????????????????? | | ????????# """ #???????????????????????????????? | | ????????# """ #???????????????????????????????? | | ????????# """ #???????????????????????????????? | | ????????# #???????????????????????????????? | | ????????# """ #???????????????????????????????? | | ????????# """ #???????????????????????????????? | | ????????# """ #???????????????????????????????? | | ????????# #???????????????????????????????? | | ????????#####+#####??????????????????????????????? | | ???????????# #??????????????????????????????? | +----------------------------------------------------+ Best States ------------- Heat Dissipation 28 Coolant Potential 50 Energy Generation 10 Energy Capacity 125 Matter Stores 300 Matter Capacity 300 Sight Range 16 Robot Scan Range 14 Terrain Scan Density 10 Evasion (%) 62 Item Schematics ----------------- None Robot Schematics ------------------ None Fabricated ------------ Nothing Alien Tech Used ----------------- None Achievements -------------- None Challenges ------------ None Game ------ Seed BombPrecisionTreads Manual? 0 Play Time 00:08:20 Cumulative 114.3 hours Start 2022.04.29 @ 13:48:12 End 2022.04.29 @ 13:54:01 Sessions 1 Manual Loads 0 Difficulty Rogue Special Mode None Game No. 141 Rogue 140 Adventurer 0 Explorer 1 Win Type - Total 2 Types 2/0/0/0/0/0/0/0/0 Lore% 57 Gallery% 56 Achievement% 46 Wizard Run 0 Options --------- ASCII 1 Keyboard 0 Movement Vi Keybinds 0 Fullscreen 1 Font 18/SmallcapsGlow Map View 76x50 Tactical HUD 1 Map Filters NONE Filters NONE Steam 1 RUN: b7cd21ff-ede8-4cd3-b9fc-116db9bb09ad